Cogmind - Beta 15 X1 @@@ ROGUE MODE // 2024.11.14 @ 02:12:07 Player: H3-RMN Result: Destroyed by JL-26P(R) with Subdweller Beam Cannon Performance ------------- Evolutions (0) 0 Regions Visited (2) 400 Robots Destroyed (16) 80 Value Destroyed (412) 412 Prototype IDs (0) 0 Alien Tech Used (0) 0 Bonus (0) 0 TOTAL SCORE: 892 Bonus ------- None Cogmind --------- Core Integrity 0/250 Matter 300/300 Energy 76/100 System Corruption 1% Temperature Cool (9) Movement Rolling (119) Ox2 Location -10/Subcaves Parts ------- > --- POWER (1) -------- (None) > --- PROPULSION (2) --- Wheel Subdweller Monowheel > --- UTILITY (2) ------ Huge Storage Unit Subdweller Optics > --- WEAPON (2) ------- (None) > --- INVENTORY (25) --- Ion Engine Light Ion Engine Subdweller Power Source Light Treads Light Treads Spiked Treads Subdweller Monowheel Subdweller Monowheel Subdweller Monowheel Subdweller Monowheel Medium Storage Unit Subdweller Optics Subdweller Optics Transport Network Coupler Subdweller Laser Subdweller Laser Peak State ------------ > --- POWER ------------ Ion Engine > --- PROPULSION ------- Light Treads Wheel > --- UTILITY ---------- Huge Storage Unit Subdweller Optics > --- WEAPON ----------- Subdweller Laser Subdweller Laser > --- INVENTORY -------- Ion Engine Light Ion Engine Light Treads Light Treads Light Treads Wheel Wheel Subdweller Monowheel Subdweller Monowheel Subdweller Monowheel Medium Storage Unit Subdweller Optics Transport Network Coupler Subdweller Machine Gun Flamer [Rating: 12] Favorites ----------- Power Ion Engine Engine Ion Engine Propulsion Wheel Treads Light Treads Wheel Wheel Utility Huge Storage Unit Device Subdweller Optics Storage Huge Storage Unit Processor Signal Interpreter Weapon EM Pulse Gun Energy Gun EM Pulse Gun Ballistic Gun Subdweller Machine Gun Special Weapon Flamer Build | -11 -10 -10 ------- Run | Yrd Mat Sub Slots Evolved . | . . . Power . | . . . Propulsion . | . . . Utility . | . . . Weapon . | . . . Parts Attached 22 | 8 6 8 Power 2 | 1 1 . Engine 2 | 1 1 . Core . | . . . Reactor . | . . . Propulsion 6 | 2 1 3 Treads 2 | . 1 1 Leg . | . . . Wheel 4 | 2 . 2 Hover . | . . . Flight . | . . . Utility 6 | 3 2 1 Device 3 | 2 . 1 Storage 2 | 1 1 . Processor 1 | . 1 . Hackware . | . . . Protection . | . . . Artifact . | . . . Weapon 8 | 2 2 4 Energy Gun 5 | 1 2 2 Energy Cannon . | . . . Ballistic Gun 2 | 1 . 1 Ballistic Cannon . | . . . Launcher . | . . . Special Weapon 1 | . . 1 Impact Weapon . | . . . Slashing Weapon . | . . . Piercing Weapon . | . . . Special Melee Weapon . | . . . Unidentified Prototypes . | . . . Corrupted Parts 1 | . . 1 System Corruption 1 | . . 1 Parts Lost 12 | . 3 9 Power 1 | . . 1 Propulsion 4 | . . 4 Utility 1 | . 1 . Weapon 6 | . 2 4 Highest Loss Streak 5 | . 3 5 To Critical Strikes . | . . . Average Backups 9 | 2 4 14 Power 1 | . 1 2 Propulsion 5 | 1 2 7 Utility 1 | . . 3 Weapon . | . . 1 Tool/Special . | . . . Unused Backups 13 | . . 13 Power 2 | . . 2 Propulsion 7 | . . 7 Utility 4 | . . 4 Weapon . | . . . Tool/Special . | . . . Average Slot Usage (%) 97 | . 98 97 Engine 13 | . 14 13 Treads 11 | . 8 13 Wheel 15 | . 19 13 Device 7 | . 5 9 Storage 16 | . 19 14 Processor 3 | . 1 4 Energy Gun 18 | . 22 15 Ballistic Gun 5 | . 5 5 Special Weapon 3 | . . 5 Peak Build Rating 12 | 9 9 12 Average Rating 9 | 6 7 10 On Entrance 5 | . 9 7 Naked Turns . | . . . Heaviest Build 95 | 14 94 95 Greatest Support 30 | 20 20 30 Greatest Overweight (x) 9 | . 9 9 Average Overweight (x) 5 | . 2 8 Largest Inventory Capacity 25 | 8 25 25 Average Capacity 20 | 7 17 25 Most Carried 18 | 4 9 18 Average Carried 9 | 2 4 14 Final Capacity 25 | 8 25 25 Final Carried 16 | 4 9 16 Class Distribution -------------------- 100% | Mutant Dominant Class ---------------- Mutant | -10/Materials Mutant | -10/Subcaves Resources | -11 -10 -10 ----------- Run | Yrd Mat Sub Matter Collected 511 | 290 134 87 Remotely 109 | 109 . . Salvage Created 699 | 115 370 214 Parts 40 | 8 15 17 Haulers Intercepted 2 | . 2 . Recyclers Shooed . | . . . Parts Field Recycled . | . . . Retrieved Matter . | . . . Parts Self-Destructed . | . . . Prevented . | . . . Kills | -11 -10 -10 ------- Run | Yrd Mat Sub Combat Hostiles Destroyed 9 | . 4 5 Guns 9 | . 4 5 Classes Destroyed 7 | 2 4 1 Tunneler 2 | 2 . . Hauler 2 | . 2 . Recycler 1 | 1 . . Mechanic 1 | . 1 . Watcher 1 | . 1 . Grunt 4 | . 4 . Subdweller 5 | . . 5 Best Kill Streak 3 | 3 2 2 Combat Bots Only 2 | . 2 2 Max Kills in Single Turn 1 | 1 1 1 Gunslinging . | . . . Exploded . | . . . Melee . | . . . Uniques/NPCs Destroyed . | . . . Combat | -11 -10 -10 -------- Run | Yrd Mat Sub Hostile Shots Fired 77 | . 34 43 Missed 13 | . 3 10 Damage Taken 1266 | . 474 792 Core 277 | . 133 144 Absorbed by Shields . | . . . Core Remaining (%) 100 | 100 . . Volleys Fired 98 | 17 48 33 Largest 2 | 2 2 2 Hottest 130 | 60 90 130 Shots Fired 177 | 34 94 49 Gun 176 | 34 94 48 Cannon . | . . . Launcher . | . . . Special 1 | . . 1 Kinetic 44 | 17 21 6 Thermal 65 | . 26 39 Explosive . | . . . Electromagnetic 68 | 17 47 4 Robot Hit Streak 11 | 5 11 9 Robot Miss Streak 3 | 2 3 2 Penetration Max . | . . . Secondary Targets 2 | . 1 1 Max Gunslinging Chain 1 | . 1 1 Shots Hit Robots 120 | 21 63 36 Core Hits 36 | 6 18 12 Critical Kills 1 | . . 1 Critical Parts Destroyed . | . . . Critical Strikes 7 | . 6 1 Burn 5 | . 5 . Destroy 1 | . . 1 Corrupt 1 | . 1 . Melee Attacks . | . . . Impact . | . . . Slashing . | . . . Piercing . | . . . Sneak Attacks . | . . . Combat Hostiles . | . . . Follow-up Attacks . | . . . Damage Inflicted 1695 | 238 795 662 Guns 1615 | 238 741 636 Cannons . | . . . Explosions 54 | . 54 . Melee . | . . . Ramming 15 | . . 15 Kinetic 336 | 92 134 110 Thermal 785 | . 279 506 Explosive . | . . . Electromagnetic 559 | 146 382 31 Impact . | . . . Slashing . | . . . Piercing . | . . . Highest Corruption 1 | . . 1 Average Corruption 1 | . . 1 Corruption Purged . | . . . Corruption Blocked . | . . . Effects 4 | . . 4 Message Errors 2 | . . 2 Heat Flow Errors 2 | . . 2 Overload Shots . | . . . Overflow Damage 2 | . 2 . Projectiles . | . . . Explosions 2 | . 2 . Melee . | . . . Knockbacks . | . . . Impact . | . . . Kinetic . | . . . Secondary . | . . . Self-Inflicted Damage 39 | . 32 7 Shots 1 | . 1 . Rammed 1 | . . 1 Targets Rammed 1 | . . 1 Kicked . | . . . Crushed . | . . . Highest Temperature 420 | 60 420 204 Average Temperature 94 | 25 123 36 Received Heat Transfer 438 | . 297 141 Effects 2 | . 2 . Shutdowns 1 | . 1 . Matter Decay 1 | . 1 . Siege Activations . | . . . Martial Activations . | . . . Shielding Activations . | . . . Robots Disrupted . | . . . Combat Hostiles . | . . . Robots Corrupted . | . . . Combat Hostiles . | . . . Parts Fried 2 | . 2 . Impact Corruptions . | . . . Robots Melted . | . . . Combat Hostiles . | . . . Parts Melted . | . . . Heat Transferred 1938 | . 1136 802 Parts Sabotaged . | . . . Parts Stolen . | . . . Parts Stripped . | . . . Power Chain Reactions 1 | . 1 . Alert | -11 -10 -10 ------- Run | Yrd Mat Sub Maximum Alert Level . | . . . Low Security (%) 100 | 100 100 . Level 1 . | . . . Level 2 . | . . . Level 3 . | . . . Level 4 . | . . . Level 5 . | . . . High Security . | . . . Max Security . | . . . Peak Influence 50 | 10 50 . Initial . | . . . Average 9 | . 11 . Influence Increases 180 | 15 165 . Destroy 0b10 Robot/C 80 | . 80 . Destroy 0b10 Robot/NC 35 | 15 20 . Destroy Leader 16 | . 16 . Successful Hack 19 | . 19 . Disable Machine 15 | . 15 . Lose Combat Pursuer 15 | . 15 . Influence Decreases 180 | 15 165 . Time Decay 150 | 15 135 . Lost Part 30 | . 30 . Squads Dispatched . | . . . Investigation . | . . . Extermination . | . . . Reinforcement . | . . . Assault . | . . . Garrison . | . . . Intercept . | . . . Searches Triggered . | . . . Construction Impeded . | . . . Haulers Reinforced . | . . . Active Scanning Responses . | . . . Cargo Convoy Interrupts . | . . . Stealth | -11 -10 -10 --------- Run | Yrd Mat Sub Distress Signals . | . . . Communications Jammed . | . . . Distress Signals . | . . . Times Spotted 17 | . 10 7 Peak Tracking Total 3 | . 3 3 Tactical Retreats 1 | . 1 . Traps | -11 -10 -10 ------- Run | Yrd Mat Sub Traps Triggered 1 | . . 1 Indirectly . | . . . Trap Hack Attempts . | . . . Triggered . | . . . Disarmed . | . . . Reprogrammed . | . . . Reused . | . . . Traps Extracted . | . . . Installed . | . . . Triggered . | . . . Machines | -11 -10 -10 ---------- Run | Yrd Mat Sub Machines Disabled 1 | . 1 . Max in Single Turn 1 | . 1 . Machines Repaired . | . . . Machines Dismantled . | . . . Machines Sabotaged . | . . . Overloaded Fab Kills . | . . . Hacking | -11 -10 -10 --------- Run | Yrd Mat Sub Machines Accessed 2 | . 2 . Terminals 2 | . 2 . Fabricators . | . . . Repair Stations . | . . . Recycling Units . | . . . Scanalyzers . | . . . Garrison Access . | . . . Total Hacks 6 | . 6 . Successful 3 | . 3 . Failed 3 | . 3 . Catastrophic 1 | . 1 . Database Lockouts . | . . . Manual 6 | . 6 . Terminals 6 | . 6 . Fabricators . | . . . Repair Stations . | . . . Recycling Units . | . . . Scanalyzers . | . . . Garrison Access . | . . . Terminal Hacks 3 | . 3 . Part Schematic 1 | . 1 . Robot Analysis 2 | . 2 . Fabricator Hacks . | . . . Repair Station Hacks . | . . . Recycling Unit Hacks . | . . . Scanalyzer . | . . . Garrison Access Hacks . | . . . Unauthorized Hacks . | . . . Terminals . | . . . Fabricators . | . . . Repair Stations . | . . . Recycling Units . | . . . Scanalyzers . | . . . Garrison Access . | . . . Data Cores Recovered . | . . . Used . | . . . Hacking Detections 2 | . 2 . Full Trace Events . | . . . Feedback Events . | . . . Feedback Blocked . | . . . Robot Schematics Acquired . | . . . Robots Built . | . . . Authchips . | . . . Time . | . . . Total Robot Build Rating . | . . . Part Schematics Acquired 1 | . 1 . Parts Built . | . . . Authchips . | . . . Time . | . . . Total Part Build Rating . | . . . Parts Repaired . | . . . Time . | . . . Parts Recycled . | . . . Recycled Matter . | . . . Retrieved Matter . | . . . Retrieved Components . | . . . Parts Scanalyzed . | . . . Part Schematics Acquired . | . . . Parts Damaged . | . . . Bothacking | -11 -10 -10 ------------ Run | Yrd Mat Sub Used RIF Installer . | . . . Robots Hacked . | . . . Non-combat . | . . . Combat . | . . . Robot Hacks Applied . | . . . Relay Couplers Released . | . . . Fabnet Peak Effective % . | . . . Robots Rewired . | . . . Allies Hacked . | . . . Hacks Repelled . | . . . Allies | -11 -10 -10 -------- Run | Yrd Mat Sub Total Allies . | . . . Largest Group . | . . . Highest-Rated Group . | . . . Highest-Rated Ally . | . . . Total Orders . | . . . Ally Attacks . | . . . Total Damage . | . . . Kills . | . . . Allies Corrupted . | . . . Allies Melted . | . . . Intel | -11 -10 -10 ------- Run | Yrd Mat Sub Active Infowar (turns) 763 | 24 214 525 Optics 525 | . . 525 Terrain 238 | 24 214 . Robot Analysis Total 2 | . 2 . Derelict Logs Recovered 2 | . . 2 Drone Launches . | . . . Drone Recoveries . | . . . Exploration | -11 -10 -10 ------------- Run | Yrd Mat Sub Turns Passed 1439 | 124 541 774 Spaces Moved 641 | 52 278 311 Core 1 | 1 . . Treads 15 | . 15 . Legs . | . . . Wheels 625 | 51 263 311 Hover . | . . . Flight . | . . . Fastest Speed 50 | 50 80 119 Average Speed 167 | 79 133 212 Slowest Speed 480 | 80 480 215 Overloaded Moves . | . . . Propulsion Burnouts . | . . . Robots Hopped . | . . . Cave-ins Triggered . | . . . Exploration Rate (%) 26 | 4 44 30 Regions Visited 2 Branch Regions 1 Pre-discovered Areas 1 | . . 1 Known Exits Taken 1 | . 1 . Unknown Exits Taken 1 | 1 . . Scrap Searched 4 | . . 4 Spaces Dug . | . . . Terrain Destroyed . | . . . Melee . | . . . Projectile . | . . . AOE . | . . . Terrain Rammed . | . . . Walls Destroyed . | . . . Machines Disabled . | . . . Actions | -11 -10 -10 --------- Run | Yrd Mat Sub Total 827 | 100 357 370 Wait 42 | 19 19 4 Move 639 | 51 277 311 Hop . | . . . Pick Up 21 | 4 6 11 Fast Attach 13 | 8 2 3 Attach 6 | . 2 4 Detach . | . . . Swap 4 | . 2 2 Drop 3 | 1 1 1 Fire 98 | 17 48 33 Melee . | . . . Ram 1 | . . 1 Kick . | . . . Crush . | . . . Escape Stasis . | . . . Rewire . | . . . Trap . | . . . Miscellaneous . | . . . Route ------- -11/Scrapyard -10/Materials (discovered 3 exits: [*Mat] / [*Min] / *Sub) -10/Subcaves History --------- Turn | Location | Event 11 | -11/Scrapyard | Discovered new exit (range 16) 125 | -11/Scrapyard | Entered Materials 222 | -10/Materials | Discovered new exit (range 12) 288 | -10/Materials | Discovered new exit (range 15) 316 | -10/Materials | Build established: Mutant 350 | -10/Materials | Core integrity fell below 50% 370 | -10/Materials | Lost 3 parts (1u2w) 648 | -10/Materials | Discovered new exit (range 10) 664 | -10/Materials | Identified exit to Subcaves 666 | -10/Materials | Entered Subcaves 719 | -10/Subcaves | Ambushed by Subdwellers from Twisted Machinery 857 | -10/Subcaves | Learned Materials emergency access door positions 1027 | -10/Subcaves | Learned location of Zion (-7) 1420 | -10/Subcaves | A Subdweller sparked back to life 1434 | -10/Subcaves | Core integrity fell below 20% 1440 | -10/Subcaves | Destroyed by JL-26P(R) with Subdweller Beam Cannon Last Messages --------------- 01116_ Subatomizers dissect the Disposable Heat Sink. 01131_ Acquired 37 matter. 01135_ System corrupted: Heat flow error (+242). 01142_ Subatomizers dissect the Disposable Heat Sink. 01197_ Triggered Piercing Trap. 01197_ Spikes shoot up from the floor. 01197_ Critical hit (Impale). 01333_ Acquired Sub. Power Source. 01342_ Acquired Sub. Monowheel. 01420_ 4B-OFP(R) creaks and sparks as it begins to move. 01423_ Flamer destroyed. 01425_ Ion Engine destroyed. 01426_ Wheel destroyed. 01428_ YA-XL3(R) destroyed. 01429_ Lgt. Treads destroyed. 01431_ Sub. Machine Gun destroyed. 01432_ Subatomizers dissect the Sub. Power Source. 01435_ 4B-OFP(R) affixes Scrap Shield Fragment to Scrap Shield. 01438_ Acquired 20 matter. 01439_ Slammed into 4B-OFP(R). Map ----- +----------------------------------------------------+ | ?????????????????????????????????????????????? | | ????????????????????????????????????????????? | | ????????????????????????????????????????????# | | ????????????????????????????????????????????### | | ??????????????????????????????????????????????## | | ???????????????????????????????????????????????# | | ???????????????????????????????????????????????# | | ?????????????????? "?????????????????????????## | | ?????????????????#" "?????????????????????????#? | | ????????????????"" "??????????????????????????? | | ????????????????? ??????????????????????????? | | ???????????????? ??????????????????????????? | | ?????????????????" #?????????????????????##### | | ?????????????????# ?????????????????????# # | | ?????????????????? ?????????????????????# | | ??????????????????# ??????????????######## | | ??????????????????? #??????????##?# | | ???????????????????? ##????????# #?# | | ????????????????????? #?????#??# #?# | | ?????????????????????? #????? ??# ### | | ??????????????????????? ????? ### ## # | | ???????????????????????# ????? ### ### | | ???????????????????????# ????? ### #?? | | ????????????????????#### ####### ### ##? | | ??????????????????### R&## ## #?## ## | | ??????????????????# < @%R #???#### # | | ??????????????????# !*# #?????## # | | ??????????????????### < ##??#### ## # | | ????????????????????## << ##### #?## | | ?????????????????????## < #??? | | ??????????????????????# < & #??? | | ??????????????????????### ## ######## ### #??? | | ????????????????????????########??????####?####??# | | ?????????????????????????????????????????????????? | | ?????????????????????????????????????????????????? | | ?????????????????????????????????????????????????? | | ?????????????????????????????????????????????????? | | ?????????????????????????????????????????????????? | | ?????????????????????????????????????????????????? | | ?????????????????????????????????????????????????? | | ?????????????????????????????????????????????????? | | ?????????????????????????????????????????????????? | | ?????????????????????????????????????????????????? | | ?????????????????????????????????????????????????? | | ?????????????????????????????????????????????????? | | ?????????????????????????????????????????????????? | | ?????????????????????????????????????????????????? | | ?????????????????????????????????????????????????? | | ?????????????????????????????????????????????????? | | ?????????????????????????????????????????????????? | +----------------------------------------------------+ Best States ------------- Heat Dissipation 25 Energy Generation 10 Energy Capacity 250 Matter Stores 300 Matter Capacity 300 Sight Range 21 Terrain Scan Range 16 Terrain Scan Density 10 Evasion (%) 44 Recoil Reduction 2 Item Schematics ----------------- Hcp. Storage Unit | -10/Materials | Hacked Robot Schematics ------------------ None Fabricated ------------ Nothing Repaired ---------- Nothing Alien Tech Used ----------------- None Achievements -------------- None Challenges ------------ None Game ------ Seed ReactionSurgeWartreads Manual? 0 Play Time 00:11:01 Cumulative 547.6 hours Start 2024.11.14 @ 02:04:18 End 2024.11.14 @ 02:12:07 Sessions 1 Manual Loads 0 Difficulty Rogue Special Mode None Game No. 207 Rogue 202 Adventurer 4 Explorer 1 Win Type - Total 7 Types 4/1/0/1/0/1/0/0/0 Lore% 89 Gallery% 92 Achievement% 87 Wizard Run 0 Options --------- Layout 0 ASCII 0 Keyboard 0 Movement Numpad Keybinds 0 Fullscreen 2 Font 18/CogNarrow Map View 76x50 Zoom Use 0% Tactical HUD 1 Map Filters NONE Filters NONE Steam 1 RUN: e146ae4e-ccf4-4a3a-9667-5030c2a4e21e